bitfinex/quotes_SOLUSD_20230404
["timestamp","ask_amount","ask_price","bid_price","bid_amount"]
[1680597344367,20.0,20.549,20.531,17.0]
[1680597344760,20.0,20.549,20.531,69.90571942]
[1680597346860,41.854,20.55,20.531,69.90571942]
[1680597347265,20.0,20.549,20.531,69.90571942]
[1680597350462,41.854,20.55,20.531,69.90571942]
[1680597350657,20.0,20.547,20.531,69.90571942]
[1680597350863,40.0,20.547,20.531,69.90571942]
[1680597356283,20.0,20.547,20.531,69.90571942]
[1680597359482,20.0,20.547,20.532,20.0]
[1680597359681,20.0,20.547,20.533,17.0]
[1680597367099,20.0,20.547,20.534,20.0]
[1680597367287,20.0,20.547,20.535,17.0]
[1680597370195,20.0,20.547,20.533,52.90571942]
[1680597370500,20.0,20.547,20.534,17.0]
[1680597378909,40.0,20.547,20.534,17.0]
[1680597379298,20.0,20.547,20.534,17.0]
[1680597380198,40.0,20.547,20.534,17.0]
[1680597382216,20.0,20.547,20.534,17.0]
[1680597386018,40.0,20.547,20.534,17.0]
[1680597390021,20.0,20.547,20.534,17.0]
[1680597390525,40.0,20.547,20.534,17.0]
[1680597393127,20.0,20.547,20.534,17.0]
[1680597394910,40.0,20.547,20.534,17.0]
[1680597396717,20.0,20.546,20.534,17.0]
[1680597404840,20.0,20.546,20.54,80.0]
[1680597405712,40.0,20.547,20.54,80.0]
[1680597406222,20.0,20.547,20.54,80.0]
[1680597426558,20.0,20.548,20.54,80.0]
[1680597428646,20.0,20.546,20.54,80.0]
[1680597429476,17.0,20.547,20.54,80.0]
[1680597430277,20.0,20.546,20.54,80.0]
[1680597431872,17.0,20.545,20.54,80.0]
[1680597434571,20.0,20.544,20.54,80.0]
[1680597452182,17.0,20.545,20.54,80.0]
[1680597508935,17.0,20.544,20.54,80.0]
[1680597509142,17.0,20.546,20.54,80.0]
[1680597513752,17.0,20.546,20.54,30.0]
[1680597513952,20.0,20.545,20.54,30.0]
[1680597514143,17.0,20.544,20.54,30.0]
[1680597514654,20.0,20.545,20.54,30.0]
[1680597516954,20.0,20.547,20.54,30.0]
[1680597517140,17.0,20.546,20.54,30.0]
[1680597535279,20.0,20.545,20.54,30.0]
[1680597535671,17.0,20.544,20.54,30.0]
[1680597540184,22.39,20.55,20.541,20.0]
[1680597540371,22.39,20.56,20.543,20.0]
[1680597540569,22.39,20.56,20.544,20.0]
[1680597540769,22.39,20.56,20.544,91.07682491]
[1680597540969,22.39,20.56,20.545,20.0]
[1680597541183,22.39,20.56,20.545,98.37460977]
[1680597541363,22.39,20.56,20.547,20.0]
[1680597541769,22.39,20.56,20.548,7.3050432]
[1680597542670,17.0,20.559,20.548,7.3050432]
[1680597546887,17.0,20.559,20.548,78.37460977]
[1680597547185,17.0,20.559,20.549,7.3050432]
[1680597547787,17.0,20.559,20.548,71.06956657]
[1680597548290,17.0,20.559,20.549,7.3050432]
[1680597548878,20.0,20.558,20.548,71.06956657]
[1680597549078,17.0,20.557,20.548,71.06956657]
[1680597549892,17.0,20.559,20.548,71.06956657]
[1680597550483,17.0,20.559,20.549,7.3050432]
[1680597552384,20.0,20.558,20.549,7.3050432]
[1680597552579,17.0,20.557,20.549,7.3050432]
[1680597552996,17.0,20.557,20.544,20.0]
[1680597553196,17.0,20.557,20.543,20.0]
[1680597553398,20.0,20.556,20.543,20.0]
[1680597553600,17.0,20.555,20.543,20.0]
[1680597554192,22.39,20.56,20.544,7.3050432]
[1680597554500,17.0,20.559,20.545,20.0]
[1680597554708,20.0,20.558,20.545,20.0]
[1680597554998,22.39,20.56,20.546,19.468]
[1680597555400,22.39,20.56,20.547,40.0]
[1680597555906,22.39,20.56,20.547,20.0]
[1680597556403,17.0,20.559,20.547,20.0]
[1680597557902,22.39,20.56,20.547,20.0]
[1680597558203,22.39,20.56,20.548,20.0]
[1680597558594,135.4274,20.57,20.548,20.0]
[1680597559101,20.0,20.567,20.548,135.6355]
[1680597559300,20.0,20.567,20.548,115.6355]
[1680597559801,17.0,20.566,20.548,115.6355]
[1680597560004,20.0,20.565,20.548,115.6355]
[1680597560299,17.0,20.564,20.548,115.6355]
[1680597562090,17.0,20.564,20.55,22.48]
[1680597568313,20.0,20.567,20.55,22.48]
[1680597569612,17.0,20.566,20.55,22.48]
[1680597569795,20.0,20.565,20.55,22.48]
[1680597569995,17.0,20.564,20.55,22.48]
[1680597571810,40.0,20.567,20.55,93.54832376]
[1680597571811,17.0,20.566,20.55,93.54832376]
[1680597572298,17.0,20.566,20.551,20.0]
[1680597572710,17.0,20.566,20.551,91.06832376]
[1680597574299,17.0,20.566,20.551,71.06832376]
[1680597577310,20.0,20.565,20.55,22.48]
[1680597577516,20.0,20.563,20.55,22.48]
[1680597577902,20.0,20.561,20.548,115.6355]
[1680597578103,17.0,20.56,20.548,115.6355]
[1680597580114,17.0,20.562,20.548,115.6355]
[1680597582534,20.0,20.561,20.548,115.6355]
[1680597582732,17.0,20.56,20.548,115.6355]
[1680597588139,17.0,20.562,20.548,115.6355]
[1680597588330,17.0,20.564,20.548,115.6355]
[1680597590335,20.0,20.563,20.548,115.6355]
[1680597590654,17.0,20.562,20.548,115.6355]
[1680597599935,17.0,20.562,20.55,22.58]
[1680597601533,17.0,20.562,20.548,115.6355]
[1680597601714,20.0,20.561,20.548,115.6355]
[1680597601917,17.0,20.56,20.548,115.6355]
[1680597611237,17.0,20.562,20.549,63.19784078]
[1680597613653,17.0,20.563,20.549,63.19784078]
[1680597614949,20.0,20.562,20.549,63.19784078]
[1680597619333,20.0,20.562,20.55,22.58]
[1680597619539,17.0,20.563,20.55,22.58]
[1680597619756,17.0,20.563,20.55,85.77784078]
[1680597620252,17.0,20.563,20.551,19.463]
[1680597620739,17.0,20.563,20.551,82.66084078]
[1680597624452,40.0,20.568,20.551,82.66084078]
[1680597624453,20.0,20.568,20.551,82.66084078]
[1680597624761,20.0,20.568,20.552,20.0]
[1680597625139,20.0,20.568,20.553,63.19784078]
[1680597625746,17.0,20.567,20.553,63.19784078]
[1680597626142,20.0,20.566,20.553,63.19784078]
[1680597626343,17.0,20.565,20.553,63.19784078]
[1680597626549,17.0,20.565,20.551,113.8853]
[1680597627054,17.0,20.565,20.551,177.08314078]
[1680597628345,20.0,20.568,20.554,19.46]
[1680597628539,14.87605904,20.569,20.555,40.0]
[1680597628748,112.9874,20.57,20.555,20.0]
[1680597629060,127.89996149,20.57,20.555,83.19784078]
[1680597629557,14.91256149,20.57,20.555,83.19784078]
[1680597629758,14.91256149,20.57,20.556,63.19784078]
[1680597629945,115.1125,20.578,20.556,63.19784078]
[1680597630139,20.0,20.577,20.556,63.19784078]
[1680597630344,25.38326832,20.577,20.556,63.19784078]
[1680597630567,25.38326832,20.576,20.557,20.0]
[1680597630863,37.0,20.575,20.557,20.0]
[1680597632055,37.0,20.575,20.56,28.17]
[1680597634146,20.0,20.568,20.56,28.17]
[1680597641966,20.0,20.568,20.56,28.17]
[1680597645368,20.0,20.568,20.557,20.0]
[1680597645867,20.0,20.568,20.556,63.19784078]
[1680597646070,20.0,20.568,20.558,20.0]
[1680597648656,20.0,20.568,20.557,37.0]
[1680597649161,20.0,20.568,20.557,17.0]
[1680597650076,20.0,20.568,20.557,36.457]
[1680597650258,20.0,20.568,20.559,20.0]
[1680597650682,20.0,20.568,20.558,63.19784078]
[1680597650971,20.0,20.568,20.559,17.0]
[1680597653376,20.0,20.568,20.558,63.19784078]
[1680597658084,20.0,20.568,20.559,20.0]
[1680597658678,20.0,20.575,20.56,17.0]
[1680597662082,20.0,20.575,20.561,20.0]
[1680597664671,20.0,20.575,20.56,17.0]
[1680597664972,17.0,20.574,20.559,114.6119]
[1680597665172,20.0,20.573,20.559,114.6119]
[1680597667078,17.0,20.574,20.559,114.6119]
[1680597667992,20.0,20.575,20.561,20.0]
[1680597668289,20.0,20.575,20.562,17.0]
[1680597669678,20.0,20.575,20.561,20.0]
[1680597670685,20.0,20.575,20.562,17.0]
[1680597670994,20.0,20.575,20.563,20.0]
[1680597671386,20.0,20.575,20.562,17.0]
[1680597674093,20.0,20.575,20.56,28.17]
[1680597674491,20.0,20.575,20.559,114.6119]
[1680597674684,20.0,20.573,20.559,114.6119]
[1680597674884,17.0,20.572,20.559,114.6119]
[1680597676882,20.0,20.575,20.56,20.0]
[1680597677089,17.0,20.574,20.56,20.0]
[1680597678001,17.0,20.574,20.559,114.6119]
[1680597679497,20.0,20.575,20.56,28.1]
[1680597679703,20.0,20.575,20.562,20.0]
[1680597679894,20.0,20.575,20.563,17.0]
[1680597680289,20.0,20.578,20.563,17.0]
[1680597680713,134.8275,20.581,20.563,17.0]
[1680597680714,115.3915,20.581,20.563,17.0]
[1680597681001,115.3915,20.581,20.564,40.0]
[1680597681188,115.3915,20.581,20.565,17.0]
[1680597683103,20.0,20.58,20.565,17.0]
[1680597683505,20.0,20.578,20.565,17.0]
[1680597686003,20.0,20.578,20.563,17.0]
[1680597692704,20.0,20.578,20.564,20.0]
[1680597692904,20.0,20.578,20.565,17.0]
[1680597693104,20.0,20.578,20.566,20.0]
[1680597693105,19.9289131,20.578,20.566,20.0]
[1680597693308,19.9289131,20.578,20.567,17.0]
[1680597693718,19.9289131,20.578,20.566,17.0]
[1680597695318,19.9289131,20.578,20.565,61.65237935]
[1680597695725,19.9289131,20.578,20.566,17.0]
[1680597700821,115.3915,20.581,20.566,17.0]
[1680597708334,115.3915,20.581,20.58,30.0]
[1680597708624,33.96787229,20.587,20.58,30.0]
[1680597708824,37.0,20.586,20.58,30.0]
[1680597709023,42.3810928,20.586,20.58,30.0]
[1680597709229,25.3810928,20.585,20.58,30.0]
[1680597709429,20.0,20.584,20.58,30.0]
[1680597709629,20.0,20.583,20.58,30.0]
[1680597710018,20.0,20.584,20.58,30.0]
[1680597712623,20.0,20.585,20.58,30.0]
[1680597714439,20.0,20.586,20.58,30.0]
[1680597714843,20.0,20.587,20.58,30.0]
[1680597715027,20.0,20.586,20.58,30.0]
[1680597721552,20.0,20.587,20.58,30.0]
[1680597726034,40.0,20.587,20.58,30.0]
[1680597727435,20.0,20.587,20.58,30.0]
[1680597731048,17.5,20.587,20.58,30.0]
[1680597732357,17.5,20.587,20.58,29.93738719]
[1680597739464,22.8810928,20.587,20.58,29.93738719]
[1680597739675,17.0,20.586,20.58,29.93738719]
[1680597739960,20.0,20.585,20.58,29.93738719]
[1680597740162,20.0,20.583,20.58,29.93738719]
[1680597740756,20.0,20.584,20.58,29.93738719]
[1680597740967,20.0,20.583,20.58,29.93738719]
[1680597741550,20.0,20.584,20.58,29.93738719]
[1680597743366,20.0,20.585,20.58,29.93738719]
[1680597743569,17.0,20.584,20.58,29.93738719]
[1680597743867,20.0,20.583,20.58,29.93738719]
[1680597745857,20.0,20.586,20.58,29.93738719]
[1680597746167,17.0,20.585,20.58,29.93738719]
[1680597746369,20.0,20.584,20.58,29.93738719]
[1680597751063,20.0,20.582,20.58,29.93738719]
[1680597751364,17.0,20.581,20.58,29.93738719]
[1680597751952,20.0,20.582,20.58,29.93738719]
[1680597752365,20.0,20.584,20.58,29.93738719]
[1680597752570,20.0,20.586,20.58,29.93738719]
[1680597753562,20.0,20.588,20.58,29.93738719]
[1680597765479,14.88622426,20.589,20.58,29.93738719]
[1680597765674,30.0,20.591,20.58,29.93738719]
[1680597765881,30.0,20.591,20.581,20.0]
[1680597767784,30.0,20.591,20.582,17.0]
[1680597768081,30.0,20.591,20.583,20.0]
[1680597768278,44.49129986,20.591,20.583,20.0]
[1680597770480,44.49129986,20.591,20.584,17.0]
[1680597779188,14.49129986,20.591,20.584,17.0]
[1680597779395,5.3810928,20.597,20.584,17.0]
[1680597779688,20.0,20.596,20.584,17.0]
[1680597779880,20.0,20.596,20.582,17.0]
[1680597780294,20.0,20.595,20.582,17.0]
[1680597780498,20.0,20.594,20.582,17.0]
[1680597782186,20.0,20.595,20.582,17.0]
[1680597782384,20.0,20.594,20.582,17.0]
[1680597783285,20.0,20.594,20.582,20.0]
[1680597785089,20.0,20.594,20.581,17.0]
[1680597785283,20.0,20.596,20.58,29.93738719]
[1680597785484,20.0,20.594,20.58,29.93738719]
[1680597785892,20.0,20.593,20.581,20.0]
[1680597786475,20.0,20.594,20.581,20.0]
[1680597793302,20.0,20.595,20.581,20.0]
[1680597796088,20.0,20.595,20.58,29.93738719]
[1680597805613,20.0,20.595,20.581,37.0]
[1680597806496,20.0,20.595,20.581,152.212]
[1680597809508,20.0,20.596,20.581,152.212]
[1680597814920,20.0,20.596,20.581,115.212]
[1680597817424,20.0,20.596,20.582,37.0]
[1680597819807,17.0,20.595,20.581,115.212]
[1680597820114,20.0,20.594,20.581,115.212]
[1680597820721,20.0,20.594,20.582,20.0]
[1680597824032,20.0,20.594,20.581,115.212]
[1680597825629,20.0,20.594,20.582,20.0]
[1680597827426,20.0,20.596,20.582,20.0]
[1680597827934,20.0,20.598,20.582,20.0]
[1680597828230,17.0,20.597,20.582,20.0]
[1680597828423,20.0,20.596,20.582,20.0]
[1680597836835,20.0,20.596,20.581,115.212]
[1680597837018,20.0,20.596,20.582,17.0]
[1680597837538,20.0,20.596,20.583,20.0]
[1680597840947,20.0,20.596,20.582,17.0]
[1680597841325,20.0,20.596,20.583,20.0]
[1680597842348,20.0,20.596,20.582,17.0]
[1680597848752,20.0,20.596,20.581,115.212]
[1680597848957,44.89636667,20.596,20.581,115.212]
[1680597849136,37.0,20.595,20.581,115.212]
[1680597849444,20.0,20.594,20.58,29.93738719]
[1680597849654,20.0,20.592,20.58,29.93738719]
[1680597849871,17.0,20.591,20.58,29.93738719]
[1680597850751,17.0,20.592,20.58,29.93738719]
[1680597854849,20.0,20.594,20.58,29.93738719]
[1680597855057,20.0,20.595,20.581,20.0]
[1680597858767,20.0,20.595,20.58,52.40738719]
[1680597861873,20.0,20.595,20.581,20.0]
[1680597864272,20.0,20.595,20.58,52.40738719]
[1680597865169,40.0,20.595,20.58,52.40738719]
[1680597865854,20.0,20.595,20.58,52.40738719]
[1680597872659,20.0,20.595,20.58,29.93738719]
[1680597873060,40.0,20.595,20.58,29.93738719]
[1680597874179,20.0,20.595,20.58,29.93738719]
[1680597875565,20.0,20.595,20.58,52.38738719]
[1680597877360,19.424,20.593,20.58,29.93738719]
[1680597877565,22.47,20.59,20.58,29.93738719]
[1680597877764,20.0,20.589,20.58,29.93738719]
[1680597878075,37.0,20.589,20.58,29.93738719]
[1680597878474,22.47,20.59,20.58,29.93738719]
[1680597881987,25.56597722,20.595,20.58,29.93738719]
[1680597882170,25.56597722,20.595,20.581,17.0]
[1680597882871,25.56597722,20.595,20.58,29.93738719]
[1680597886086,25.56597722,20.595,20.58,29.93738719]
[1680597887482,20.0,20.594,20.58,29.93738719]
[1680597890902,25.56597722,20.595,20.58,29.93738719]
[1680597891479,20.0,20.594,20.58,29.93738719]
[1680597891992,20.0,20.594,20.58,52.21738719]
[1680597900302,25.56597722,20.595,20.58,52.21738719]
[1680597901701,20.0,20.594,20.58,52.21738719]
[1680597904003,25.56597722,20.595,20.58,52.21738719]
[1680597904206,25.56597722,20.595,20.58,29.93738719]
[1680597910514,20.0,20.595,20.58,29.93738719]
[1680597910905,34.29920233,20.596,20.58,29.93738719]
[1680597911194,115.9159,20.597,20.581,44.3050432]
[1680597911590,115.9159,20.597,20.582,27.3050432]
[1680597911803,115.9159,20.597,20.583,37.0]
[1680597912013,130.62470034,20.597,20.583,44.3050432]
[1680597912401,130.62470034,20.597,20.584,27.3050432]
[1680597912595,130.62470034,20.597,20.584,20.0]
[1680597912807,130.62470034,20.597,20.585,17.0]
[1680597913428,130.62470034,20.597,20.586,20.0]
[1680597913610,130.62470034,20.597,20.587,17.0]
[1680597915610,130.62470034,20.597,20.584,7.3050432]
[1680597915997,115.9159,20.597,20.584,7.3050432]
[1680597916198,115.9159,20.597,20.583,20.0]
[1680597916406,115.9159,20.597,20.582,20.0]
[1680597916793,115.9159,20.597,20.583,17.0]
[1680597921920,20.0,20.596,20.583,17.0]
[1680597922905,115.9159,20.597,20.583,17.0]
[1680597925518,115.9159,20.597,20.583,24.3050432]
[1680597928619,20.0,20.596,20.58,29.93738719]
[1680597928820,37.0,20.596,20.58,29.93738719]
[1680597929004,20.0,20.595,20.58,29.93738719]
[1680597929204,20.0,20.594,20.58,29.93738719]
[1680597930019,20.0,20.593,20.58,29.93738719]
[1680597937627,20.0,20.594,20.58,29.93738719]
[1680597938525,20.0,20.595,20.58,29.93738719]
[1680597938911,20.0,20.594,20.58,29.93738719]
[1680597939123,20.0,20.594,20.58,37.24243039]
[1680597947931,40.0,20.595,20.58,37.24243039]
[1680597948115,20.0,20.595,20.581,17.0]
[1680597948518,115.9159,20.597,20.582,20.0]
[1680597948833,115.9159,20.597,20.584,20.0]
[1680597949131,115.9159,20.597,20.585,17.0]
[1680597950818,115.9159,20.597,20.583,17.0]
[1680597955840,115.9159,20.597,20.584,20.0]
[1680597956037,115.9159,20.597,20.585,17.0]
[1680597956844,115.9159,20.597,20.586,20.0]
[1680597957045,115.9159,20.597,20.587,17.0]
[1680597958935,115.9159,20.597,20.585,17.0]
[1680597959740,115.9159,20.597,20.583,17.0]
[1680597961454,115.9159,20.597,20.584,20.0]
[1680597961632,115.9159,20.597,20.585,17.0]
[1680597964650,115.9159,20.597,20.584,20.0]
[1680597964852,115.9159,20.597,20.585,17.0]
[1680597966651,115.9159,20.597,20.583,17.0]
[1680597968454,115.9159,20.597,20.582,20.0]
[1680597968649,115.9159,20.597,20.581,20.0]
[1680597968850,20.0,20.596,20.581,20.0]
[1680597969951,20.0,20.596,20.582,17.0]
[1680597970155,20.0,20.596,20.583,20.0]
[1680597970962,20.0,20.596,20.581,20.0]
[1680597972063,20.0,20.596,20.58,29.93738719]
[1680597972252,37.0,20.595,20.58,29.93738719]
[1680597972562,20.0,20.594,20.58,29.93738719]
[1680597979856,17.0,20.593,20.58,29.93738719]
[1680597995067,20.0,20.592,20.58,29.93738719]
[1680597995267,20.0,20.59,20.58,29.93738719]
[1680597995666,17.0,20.589,20.58,29.93738719]
[1680597997286,20.0,20.588,20.58,29.93738719]
[1680597997569,17.0,20.587,20.58,29.93738719]
[1680598008579,20.0,20.588,20.58,29.93738719]
[1680598008778,27.87,20.59,20.58,29.93738719]
[1680598009088,132.0371,20.592,20.58,29.93738719]
[1680598009990,20.0,20.59,20.58,29.93738719]
[1680598012007,17.0,20.591,20.58,29.93738719]
[1680598016301,20.0,20.59,20.58,29.93738719]
[1680598016506,17.0,20.589,20.58,29.93738719]
[1680598016886,20.0,20.59,20.58,29.93738719]
[1680598019915,17.0,20.589,20.58,29.93738719]
[1680598020100,20.0,20.588,20.58,29.93738719]
[1680598020302,17.0,20.587,20.58,29.93738719]
[1680598023701,20.0,20.588,20.58,29.93738719]
[1680598023903,47.87,20.59,20.58,29.93738719]
[1680598024104,132.0371,20.592,20.58,29.93738719]
[1680598024410,112.0371,20.592,20.58,29.93738719]
[1680598027017,20.0,20.591,20.58,29.93738719]
[1680598027405,17.0,20.59,20.58,29.93738719]
[1680598028422,37.0,20.591,20.58,29.93738719]
[1680598028723,20.0,20.591,20.58,29.93738719]
[1680598028913,112.0371,20.592,20.58,29.93738719]
[1680598036721,17.0,20.591,20.58,29.93738719]
[1680598036930,20.0,20.59,20.58,29.93738719]
[1680598045728,20.0,20.588,20.58,29.93738719]
[1680598046934,20.0,20.59,20.58,29.93738719]
[1680598047116,17.0,20.589,20.58,29.93738719]
[1680598048835,20.0,20.59,20.58,29.93738719]
[1680598050236,17.0,20.589,20.58,29.93738719]
[1680598059530,20.0,20.588,20.58,29.93738719]
[1680598059732,17.0,20.587,20.58,29.93738719]
[1680598064360,20.0,20.588,20.58,29.93738719]
[1680598068465,22.34,20.59,20.58,29.93738719]
[1680598068667,14.43646909,20.598,20.58,29.93738719]
[1680598068668,20.0,20.595,20.58,52.41738719]
[1680598071252,20.0,20.595,20.581,17.0]
[1680598072267,20.0,20.595,20.58,52.41738719]
[1680598072669,20.0,20.594,20.58,52.41738719]
[1680598073067,20.0,20.591,20.58,29.93738719]
[1680598076369,20.0,20.594,20.58,29.93738719]
[1680598077272,20.0,20.595,20.58,29.93738719]
[1680598077563,40.0,20.595,20.58,29.93738719]
[1680598078870,20.0,20.595,20.58,29.93738719]
[1680598081073,40.0,20.595,20.58,29.93738719]
[1680598083070,20.0,20.591,20.58,29.93738719]
[1680598084855,20.0,20.591,20.58,52.41738719]
[1680598087074,20.0,20.594,20.58,52.41738719]
[1680598087469,20.0,20.591,20.58,52.41738719]
[1680598092055,20.0,20.591,20.58,29.93738719]
[1680598100079,58.767,20.59,20.58,29.93738719]
[1680598100287,20.0,20.589,20.58,29.93738719]
[1680598100778,14.64574776,20.61,20.589,20.0]
[1680598101069,109.5997,20.621,20.6,22.31]
[1680598101283,20.0,20.62,20.6,22.31]
[1680598101774,20.0,20.62,20.601,131.24067663]
[1680598101978,20.0,20.618,20.602,20.0]
[1680598102180,20.0,20.618,20.602,27.3050432]
[1680598102381,20.0,20.618,20.603,133.2123865]
[1680598102766,20.0,20.618,20.604,7.3050432]
[1680598102966,20.0,20.618,20.604,24.3050432]
[1680598103181,20.0,20.618,20.604,7.3050432]
[1680598103379,20.0,20.618,20.605,7.3050432]
[1680598105184,20.0,20.618,20.605,24.3050432]
[1680598107895,20.0,20.618,20.605,7.3050432]
[1680598108097,20.0,20.618,20.605,24.3050432]
[1680598110678,20.0,20.618,20.606,17.0]
[1680598118186,124.19996452,20.619,20.606,17.0]
[1680598118586,20.0,20.618,20.606,17.0]
[1680598118992,20.0,20.618,20.605,7.3050432]
[1680598119591,20.0,20.618,20.606,17.0]
[1680598119998,20.0,20.618,20.604,17.0]
[1680598120496,20.0,20.618,20.605,7.3050432]
[1680598120699,20.0,20.618,20.606,17.0]
[1680598120901,20.0,20.618,20.605,7.3050432]
[1680598121497,20.0,20.618,20.606,17.0]
[1680598122203,124.19996452,20.619,20.606,17.0]
[1680598122386,109.5997,20.619,20.607,7.3050432]
[1680598122881,20.0,20.618,20.607,7.3050432]
[1680598123078,109.5997,20.619,20.607,7.3050432]
[1680598123693,20.0,20.618,20.606,17.0]
[1680598123890,20.0,20.618,20.604,63.2189223]
[1680598124198,37.0,20.617,20.6,14.24531124]
[1680598124390,37.0,20.617,20.592,112.5013]
[1680598124598,20.0,20.616,20.595,7.3050432]
[1680598124798,20.0,20.615,20.595,7.3050432]
[1680598125402,20.0,20.615,20.599,125.5617432]
[1680598125597,20.0,20.615,20.6,17.0]
[1680598125982,20.0,20.613,20.6,17.0]
[1680598126499,109.1097,20.614,20.6,17.0]
[1680598126704,109.1097,20.614,20.601,20.0]
[1680598126998,109.1097,20.614,20.602,17.0]
[1680598127599,109.1097,20.614,20.603,20.0]
[1680598127788,109.1097,20.614,20.602,24.3050432]
[1680598130098,109.1097,20.614,20.602,24.3050432]
[1680598131402,109.5997,20.619,20.602,24.3050432]
[1680598131592,109.5997,20.619,20.603,20.0]
[1680598131791,109.5997,20.619,20.605,20.0]
[1680598132005,109.5997,20.619,20.606,17.0]
[1680598132210,109.5997,20.619,20.606,24.3050432]
[1680598132408,109.5997,20.619,20.607,7.3050432]
[1680598132591,109.5997,20.619,20.608,17.0]
[1680598132991,109.5997,20.619,20.609,7.3050432]
[1680598133289,109.5997,20.619,20.61,17.0]
[1680598137798,109.5997,20.619,20.603,20.0]
[1680598137988,109.5997,20.619,20.602,20.0]
[1680598138192,109.5997,20.619,20.602,7.3050432]
[1680598138402,109.5997,20.619,20.601,20.0]
[1680598138403,109.5997,20.619,20.603,27.3050432]
[1680598139210,109.5997,20.619,20.604,17.0]
[1680598140211,20.0,20.618,20.604,17.0]
[1680598140608,109.5997,20.619,20.604,17.0]
[1680598141710,109.5997,20.619,20.603,20.0]
[1680598141915,109.5997,20.619,20.601,20.0]
[1680598142212,109.5997,20.619,20.602,20.0]
[1680598142704,20.0,20.618,20.601,20.0]
[1680598143017,109.5997,20.619,20.602,17.0]
[1680598143205,109.5997,20.619,20.603,20.0]
[1680598143403,109.5997,20.619,20.604,17.0]
[1680598143604,20.0,20.618,20.604,17.0]
[1680598143797,20.0,20.618,20.6,28.01]
[1680598144001,20.0,20.617,20.6,28.01]
[1680598144202,20.0,20.617,20.601,17.0]
[1680598147314,20.0,20.616,20.601,17.0]
[1680598147500,20.0,20.615,20.601,17.0]
[1680598147893,116.3015,20.614,20.601,17.0]
[1680598157506,109.5997,20.619,20.601,17.0]
[1680598157507,109.5997,20.619,20.603,20.0]
[1680598157807,109.5997,20.619,20.604,17.0]
[1680598158017,109.5997,20.619,20.604,24.3050432]
[1680598158217,119.248,20.625,20.604,24.3050432]
[1680598158402,109.9678,20.625,20.604,24.3050432]
[1680598158605,109.9678,20.625,20.605,27.3050432]
[1680598158807,20.0,20.624,20.606,17.0]
[1680598159003,20.0,20.624,20.606,24.3050432]
[1680598159213,20.0,20.624,20.607,7.3050432]
[1680598159410,20.0,20.624,20.609,20.0]
[1680598159621,20.0,20.624,20.61,17.0]
[1680598164029,20.0,20.624,20.609,17.0]
[1680598164744,40.0,20.624,20.609,17.0]
[1680598165030,20.0,20.624,20.609,17.0]